lending/lending_fUSD_20260325
["ID","MTS","AMOUNT","RATE_DAILY","PERIOD"]
[408891047,1774398642938,-501.41671022,0.00014548,2]
[408891048,1774398642948,-151.0,0.00014634,2]
[408891049,1774398642958,-732.71,0.00014783,2]
[408891050,1774398642968,-9582.8585994,0.00014817,2]
[408891051,1774398642979,-9305.43210268,0.00014824,2]
[408891052,1774398642989,-287.36725378,0.00014884,2]
[408891053,1774398643000,-8582.2864225,0.00014891,2]
[408891054,1774398643009,-542.27464943,0.000149,2]
[408891055,1774398643019,-800.0,0.000149,5]
[408891056,1774398643028,-433.0,0.00014929,2]
[408891057,1774398643038,-1500.0,0.00014963,2]
[408891058,1774398643048,-1500.0,0.00014963,2]
[408891059,1774398643058,-4355.08444372,0.00014972,2]
[408891060,1774398643068,-1500.0,0.00014982,2]
[408891061,1774398643077,-154.11490482,0.00014988,2]
[408891062,1774398643087,-500.0,0.00015,2]
[408891063,1774398643097,-500.0,0.00015,2]
[408891064,1774398643107,-500.0,0.00015,2]
[408891065,1774398643117,-500.0,0.00015,2]
[408891066,1774398643127,-500.0,0.00015,2]
[408891067,1774398643137,-500.0,0.00015,2]
[408891068,1774398643146,-500.0,0.00015,2]
[408891069,1774398643156,-500.0,0.00015,2]
[408891070,1774398643166,-500.0,0.00015,2]
[408891071,1774398643176,-500.0,0.00015,2]
[408891072,1774398643186,-500.0,0.00015,2]
[408891073,1774398643196,-500.0,0.00015,2]
[408891074,1774398643207,-500.0,0.00015,2]
[408891075,1774398643217,-787.31237,0.00015,2]
[408891076,1774398643226,-2064.14574728,0.00015,2]
[408891077,1774398643237,-8035.78795788,0.00015,2]
[408891078,1774398643247,-200.0,0.00015,2]
[408891079,1774398643256,-195.0,0.00015,2]
[408891080,1774398643266,-200.0,0.00015,2]
[408891081,1774398643275,-500.0,0.00015,2]
[408891082,1774398643285,-500.0,0.00015,2]
[408891083,1774398643294,-500.0,0.00015,2]
[408891084,1774398643303,-500.0,0.00015,2]
[408891085,1774398643314,-500.0,0.00015,2]
[408891086,1774398643323,-500.0,0.00015,2]
[408891087,1774398643334,-500.0,0.00015,2]
[408891088,1774398643343,-1002.25886196,0.00015013,2]
[408891089,1774398643352,-168.0,0.00015022,2]
[408891090,1774398643362,-419.28,0.00015022,2]
[408891091,1774398643372,-2000.0,0.00015034,2]
[408891092,1774398643382,-2000.0,0.00015034,2]
[408891093,1774398643391,-2000.0,0.00015034,2]
[408891094,1774398643402,-2000.0,0.00015034,2]
[408891095,1774398643411,-378.81,0.00015037,2]
[408891096,1774398643421,-1569.0,0.0001504,2]
[408891097,1774398643431,-1500.0,0.00015046,2]
[408891098,1774398643441,-1500.0,0.00015056,2]
[408891099,1774398643451,-1500.0,0.00015056,2]
[408891100,1774398643461,-200.0,0.00015057,2]
[408891101,1774398643475,-596.43794566,0.00015058,2]
[408891102,1774398643486,-1500.0,0.00015058,2]
[408891103,1774398643496,-1500.0,0.00015058,2]
[408891104,1774398643506,-2004.70728104,0.00015064,2]
[408891105,1774398643517,-2500.0,0.00015064,2]
[408891106,1774398643526,-2222.25,0.00015068,2]
[408891107,1774398643536,-994.44249669,0.00015079,2]
[408891108,1774398643548,-351.2418106,0.00015114,2]
[408891109,1774398643557,-500.0,0.00015114,2]
[408891110,1774398643567,-500.0,0.00015114,2]
[408891111,1774398643576,-500.0,0.00015114,2]
[408891112,1774398643587,-500.0,0.00015114,2]
[408891113,1774398643598,-500.0,0.00015114,2]
[408891114,1774398643608,-500.0,0.00015114,2]
[408891115,1774398643620,-500.0,0.00015114,2]
[408891116,1774398643630,-500.0,0.00015114,2]
[408891117,1774398643639,-500.0,0.00015114,2]
[408891118,1774398643648,-500.0,0.00015114,2]
[408891119,1774398643657,-500.84657428,0.00015114,2]
[408891120,1774398643667,-9582.8585994,0.00015178,2]
[408891121,1774398643676,-9305.43210268,0.00015183,2]
[408891122,1774398643686,-578.20924308,0.00015199,2]
[408891123,1774398643696,-9552.16786547,0.00015199,2]
[408891124,1774398643706,-500.0,0.00015199,2]
[408891125,1774398643716,-721.12765535,0.00015199,2]
[408891126,1774398643729,-500.0,0.00015199,2]
[408891127,1774398643739,-151.0,0.00015199,2]
[408891128,1774398643748,-500.0,0.00015199,2]
[408891129,1774398643757,-500.0,0.00015199,2]
[408891130,1774398643767,-500.0,0.00015199,2]
[408891131,1774398643776,-500.0,0.00015199,2]
[408891132,1774398643785,-500.0,0.00015199,2]
[408891133,1774398643794,-500.0,0.00015199,2]
[408891134,1774398643803,-500.0,0.00015199,2]
[408891135,1774398643812,-500.0,0.00015199,2]
[408891136,1774398643822,-500.0,0.00015199,2]
[408891137,1774398643831,-500.0,0.00015199,2]
[408891138,1774398643840,-500.0,0.00015199,2]
[408891139,1774398643849,-500.0,0.00015199,2]
[408891140,1774398643858,-500.0,0.00015199,2]
[408891141,1774398643867,-500.0,0.00015199,2]
[408891142,1774398643876,-500.0,0.00015199,2]
[408891143,1774398643885,-500.0,0.00015199,2]
[408891144,1774398643895,-500.0,0.00015199,2]
[408891145,1774398643903,-500.0,0.00015199,2]
[408891146,1774398643912,-500.0,0.00015199,2]
[408891147,1774398643922,-500.0,0.00015199,2]
[408891148,1774398643931,-500.0,0.00015199,2]
[408891149,1774398643940,-500.0,0.00015199,2]
[408891150,1774398643949,-500.0,0.00015199,2]
[408891151,1774398643959,-500.0,0.00015199,2]
[408891152,1774398643968,-500.0,0.00015199,2]
[408891153,1774398643977,-500.0,0.00015199,2]
[408891154,1774398643987,-500.0,0.00015199,2]
[408891155,1774398643997,-500.0,0.00015199,2]
[408891156,1774398644006,-500.0,0.00015199,2]
[408891157,1774398644015,-500.0,0.00015199,2]
[408891158,1774398644024,-500.0,0.00015199,2]
[408891159,1774398644033,-151.0,0.00015199,2]
[408891160,1774398644043,-500.0,0.00015199,2]
[408891161,1774398644052,-174.61919141,0.00015199,2]
[408891162,1774398644061,-200.0,0.00015199,2]
[408891163,1774398644070,-250.0,0.00015199,2]
[408891164,1774398644079,-250.0,0.00015199,2]
[408891165,1774398644089,-693.3919763,0.00015199,2]
[408891166,1774398644100,-250.0,0.00015199,2]
[408891167,1774398644110,-250.0,0.00015199,2]
[408891168,1774398644120,-209.40437684,0.00015199,2]
[408891169,1774398644130,-250.0,0.00015199,2]
[408891170,1774398644139,-250.0,0.00015199,2]
[408891171,1774398644148,-250.0,0.00015199,2]
[408891172,1774398644157,-250.0,0.00015199,2]
[408891173,1774398644168,-250.0,0.00015199,2]
[408891174,1774398644179,-250.0,0.00015199,2]
[408891175,1774398644188,-151.0,0.00015199,2]
[408891176,1774398644197,-250.0,0.00015199,2]
[408891177,1774398644206,-262.90206542,0.00015199,2]
[408891178,1774398644217,-279.9045709,0.00015199,2]
[408891179,1774398644226,-743.50770149,0.00015199,2]
[408891180,1774398644236,-209.40437684,0.00015199,2]
[408891181,1774398644245,-500.0,0.00015199,2]
[408891182,1774398644255,-500.0,0.00015199,2]
[408891183,1774398644264,-500.0,0.00015199,2]
[408891184,1774398644273,-500.0,0.00015199,2]
[408891185,1774398644282,-500.0,0.00015199,2]
[408891186,1774398644292,-150.0,0.000152,2]
[408891187,1774398644301,-5292.35533741,0.000152,2]
[408891188,1774398644310,-350.0,0.00015202,2]
[408891189,1774398644319,-587.0,0.00015202,2]
[408891190,1774398644329,-7028.082826,0.00015217,7]
[408891191,1774398644338,-350.0,0.00015233,3]
[408891192,1774398644347,-9905.5980765,0.00015254,2]
[408891193,1774398644356,-500.0,0.00015254,2]
[408891194,1774398644365,-151.0,0.00015254,2]
[408891195,1774398644374,-272.62944185,0.00015254,2]
[408891196,1774398644383,-419.28,0.00015262,2]
[408891197,1774398644392,-150.0,0.0001528,2]
[408891198,1774398644401,-2351.0,0.00015283,2]
[408891199,1774398644411,-259.3968,0.000153,2]
[408891200,1774398644420,-1100.0,0.000153,5]
[408891201,1774398644429,-2145.0,0.00015304,2]
[408891202,1774398644438,-348.97,0.00015309,2]
[408891203,1774398644448,-10272.10520533,0.00015309,2]
[408891204,1774398644457,-500.0,0.00015309,2]
[408891205,1774398644471,-151.0,0.00015309,2]
[408891206,1774398644481,-282.71673119,0.00015309,2]
[408891207,1774398644490,-350.0,0.0001531,2]
[408891208,1774398644499,-10652.17309792,0.00015364,2]
[408891209,1774398644510,-500.0,0.00015364,2]
[408891210,1774398644519,-151.0,0.00015364,2]
[408891211,1774398644528,-293.17725025,0.00015364,2]
[408891212,1774398644538,-542.27464943,0.000154,2]
[408891213,1774398644547,-1400.0,0.000154,5]
[408891214,1774398644556,-399.67,0.00015403,2]
[408891215,1774398644565,-11046.30350255,0.00015419,2]
[408891216,1774398644574,-500.0,0.00015419,2]
[408891217,1774398644583,-151.0,0.00015419,2]
[408891218,1774398644591,-304.02480851,0.00015419,2]
[408891219,1774398644601,-350.0,0.00015423,2]
[408891220,1774398644610,-4355.08444372,0.00015436,2]
[408891221,1774398644619,-150.0,0.00015442,2]
[408891222,1774398644629,-979.16666667,0.00015445,2]
[408891223,1774398644638,-160.0,0.00015445,2]
[408891224,1774398644647,-1700.0,0.00015452,2]
[408891225,1774398644655,-1300.0,0.00015452,2]
[408891226,1774398644664,-2523.0,0.0001547,2]
[408891227,1774398644673,-11455.01673214,0.00015474,2]
[408891228,1774398644682,-500.0,0.00015474,2]
[408891229,1774398644691,-151.0,0.00015474,2]
[408891230,1774398644700,-315.27372642,0.00015474,2]
[408891231,1774398644710,-500.0,0.00015479,2]
[408891232,1774398644719,-2145.0,0.00015484,2]
[408891233,1774398644729,-1213.42,0.000155,2]
[408891234,1774398644738,-3537.96,0.000155,2]
[408891235,1774398644747,-200.0,0.000155,5]
[408891236,1774398644756,-419.29,0.00015503,2]
[408891237,1774398644765,-4000.0,0.00015507,2]
[408891238,1774398644774,-1505.99225948,0.00015511,2]
[408891239,1774398644783,-2000.0,0.00015511,2]
[408891240,1774398644792,-2145.0,0.00015529,2]
[408891241,1774398644802,-11878.85235123,0.00015529,2]
[408891242,1774398644811,-500.0,0.00015529,2]
[408891243,1774398644819,-151.0,0.00015529,2]
[408891244,1774398644829,-326.9388543,0.00015529,2]
[408891245,1774398644838,-2000.0,0.0001553,2]
[408891246,1774398644847,-9582.8585994,0.00015539,2]
[408891247,1774398644856,-9305.43210268,0.00015541,2]
[408891248,1774398644865,-2523.0,0.00015545,2]
[408891249,1774398644874,-150.0,0.00015557,2]
[408891250,1774398644884,-2500.0,0.00015582,2]
[408891251,1774398644892,-500.0,0.00015582,2]
[408891252,1774398644901,-714.94214595,0.00015582,2]
[408891253,1774398644911,-2500.0,0.00015582,2]
[408891254,1774398644920,-500.0,0.00015583,2]
[408891255,1774398644930,-12318.36988823,0.00015584,2]
[408891256,1774398644939,-500.0,0.00015584,2]
[408891257,1774398644948,-151.0,0.00015584,2]
[408891258,1774398644958,-339.03559191,0.00015584,2]
[408891259,1774398644967,-150.0,0.00015586,2]
[408891260,1774398644976,-2000.0,0.00015594,2]
[408891261,1774398644987,-200.0,0.000156,5]
[408891262,1774398644996,-2000.0,0.00015604,2]
[408891263,1774398645005,-2000.0,0.00015604,2]
[408891264,1774398645014,-200.0,0.00015605,2]
[408891265,1774398645023,-178.41995758,0.00015606,2]
[408891266,1774398645032,-659.3370675,0.00015606,2]
[408891267,1774398645042,-3000.0,0.00015612,2]
[408891268,1774398645051,-229.24,0.00015619,2]
[408891269,1774398645060,-1650.749332,0.00015621,7]
[408891270,1774398645069,-6009.0,0.00015629,2]
[408891271,1774398645078,-2467.0,0.00015629,2]
[408891272,1774398645087,-1345.0,0.00015629,2]
[408891273,1774398645096,-1586.66850349,0.00015634,2]
[408891274,1774398645106,-2523.0,0.00015635,2]
[408891275,1774398645115,-500.0,0.00015638,2]
[408891276,1774398645124,-500.0,0.00015638,2]
[408891277,1774398645134,-500.0,0.00015638,2]
[408891278,1774398645143,-500.0,0.00015638,2]
[408891279,1774398645153,-500.0,0.00015638,2]
[408891280,1774398645353,-500.0,0.00015638,2]
[408891281,1774398645363,-500.0,0.00015638,2]
[408891282,1774398645373,-10432.7362892,0.00015639,2]
[408891283,1774398645382,-500.0,0.00015639,2]
[408891284,1774398645391,-151.0,0.00015639,2]
[408891285,1774398645400,-1000.0,0.00015662,2]
[408891286,1774398645409,-1000.0,0.00015662,2]
[408891287,1774398645418,-1000.0,0.00015662,2]
[408891288,1774398645427,-1000.0,0.00015662,2]
[408891289,1774398645436,-1000.0,0.00015662,2]
[408891290,1774398645446,-390.8599641,0.00015662,2]
[408891291,1774398645455,-1000.0,0.00015662,2]
[408891292,1774398645465,-1000.0,0.00015662,2]
[408891293,1774398645478,-1000.0,0.00015662,2]
[408891294,1774398645488,-1000.0,0.00015662,2]
[408891295,1774398645497,-4169.76277734,0.0001568,2]
[408891296,1774398645506,-2523.0,0.00015682,2]
[408891297,1774398645515,-2523.0,0.00015691,2]
[408891298,1774398645524,-500.0,0.00015694,2]
[408891299,1774398645533,-151.0,0.00015694,2]
[408891300,1774398645543,-980.74677257,0.000157,2]
[408891301,1774398645552,-200.0,0.000157,5]
[408891302,1774398645561,-2000.0,0.000157,2]
[408891303,1774398645570,-378.81,0.00015721,2]
[408891304,1774398645579,-151.0,0.00015747,2]
[408891305,1774398645588,-181.08010149,0.00015747,2]
[408891306,1774398645597,-200.0,0.00015747,2]
[408891307,1774398645606,-719.04747942,0.00015747,2]
[408891308,1774398645615,-217.15233878,0.00015747,2]
[408891309,1774398645624,-290.26104003,0.00015747,2]
[408891310,1774398645634,-771.01748645,0.00015747,2]
[408891311,1774398645643,-500.0,0.00015749,2]
[408891312,1774398645653,-151.0,0.00015749,2]
[408891314,1774398645662,-2222.25,0.00015753,2]
[408891316,1774398645671,-1000.0,0.00015779,2]
[408891318,1774398645680,-1000.0,0.00015779,2]
[408891320,1774398645690,-852.844,0.00015779,2]
[408891322,1774398645699,-3491.44,0.000158,2]
[408891324,1774398645708,-200.0,0.000158,5]
[408891326,1774398645717,-2395.0,0.000158,2]
[408891328,1774398645727,-2523.0,0.00015802,2]
[408891330,1774398645738,-923.2667,0.0001584,2]
[408891331,1774398645747,-923.26671,0.0001584,2]
[408891332,1774398645756,-923.26671,0.0001585,2]
[408891333,1774398645765,-200.0,0.00015872,2]
[408891334,1774398645777,-500.0,0.0001589,2]
[408891335,1774398645789,-2000.0,0.0001589,2]
[408891336,1774398645799,-4000.0,0.00015895,2]
[408891337,1774398645809,-685.557523,0.00015898,2]
[408891338,1774398645819,-685.557523,0.00015898,2]
[408891339,1774398645828,-685.557523,0.00015898,2]
[408891340,1774398645838,-685.557523,0.00015898,2]
[408891341,1774398645847,-204.503956,0.00015898,2]
[408891342,1774398645856,-204.503956,0.00015898,2]
[408891343,1774398645865,-204.503956,0.00015898,2]
[408891344,1774398645875,-204.503956,0.00015898,2]
[408891345,1774398645884,-4104.48,0.000159,2]
[408891346,1774398645893,-10000.0,0.000159,2]
[408891347,1774398645902,-542.27464943,0.000159,2]
[408891348,1774398645912,-9582.8585994,0.000159,2]
[408891349,1774398645922,-287.36725378,0.000159,2]
[408891350,1774398645931,-800.0,0.000159,5]
[408891351,1774398645940,-213604.6158833,0.000159,2]
[408891352,1774398645950,-9305.43210268,0.000159,2]
[408891353,1774398645959,-4355.08444372,0.000159,2]
[408891354,1774398645969,-2000.0,0.000159,2]
[408891355,1774398645978,-1972.0,0.000159,5]
[408891356,1774398645989,-1575.0,0.000159,5]
[408891357,1774398645998,-348.97,0.00015906,2]
[408891358,1774398646008,-3473.58718,0.00015908,7]
[408891359,1774398646017,-1600.0,0.0001591,2]
[408891360,1774398646026,-2523.0,0.00015925,2]
[408891361,1774398646037,-3684.9477877,0.00015974,2]
[408891362,1774398646048,-1800.023783,0.00015974,2]
[408891363,1774398646058,-350.0,0.00015981,4]
[408891364,1774398646070,-2523.0,0.00015993,2]
[408891365,1774398646081,-300.58358341,0.00015994,2]
[408891366,1774398646091,-500.0,0.00015995,2]
[408891367,1774398646102,-500.0,0.00015995,2]
[408891368,1774398646113,-516.12327646,0.00015995,2]
[408891369,1774398646123,-500.0,0.00015995,2]
[408891370,1774398646132,-399.89166551,0.00015995,2]
[408891371,1774398646142,-500.0,0.00015995,2]
[408891372,1774398646152,-500.0,0.00015995,2]
[408891373,1774398646161,-534.8771196,0.00015995,2]
[408891374,1774398646170,-500.0,0.00015995,2]
[408891375,1774398646179,-500.0,0.00015995,2]
[408891376,1774398646188,-500.0,0.00015995,2]
[408891377,1774398646198,-500.0,0.00015995,2]
[408891378,1774398646216,-500.0,0.00015995,2]
[408891379,1774398646225,-500.0,0.00015995,2]
[408891380,1774398646236,-500.0,0.00015995,2]
[408891381,1774398646246,-109619.1609883,0.00015996,2]
[408891382,1774398646255,-576399.8147701,0.00015996,2]
[408891383,1774398646264,-5396.8786449,0.00015996,2]
[408891384,1774398646274,-151.0,0.00015996,2]
[408891385,1774398646283,-151.0,0.00015996,2]
[408891386,1774398646292,-151.0,0.00015996,2]
[408891387,1774398646301,-685.557523,0.00015996,2]
[408891388,1774398646311,-685.557523,0.00015996,2]
[408891389,1774398646320,-685.557523,0.00015996,2]
[408891390,1774398646329,-685.557523,0.00015996,2]
[408891391,1774398646339,-204.503956,0.00015996,2]
[408891392,1774398646349,-204.503956,0.00015996,2]
[408891393,1774398646358,-204.503956,0.00015996,2]
[408891394,1774398646367,-204.503956,0.00015996,2]
[408891395,1774398646376,-165.702438,0.00015997,2]
[408891396,1774398646386,-666.0,0.00015999,2]
[408891397,1774398646394,-155.0,0.00015999,2]
[408891398,1774398646404,-500.0,0.00015999,2]
[408891399,1774398646413,-500.0,0.00015999,2]
[408891400,1774398646422,-500.0,0.00015999,2]
[408891401,1774398646432,-500.0,0.00015999,2]
[408891402,1774398646441,-500.0,0.00015999,2]
[408891403,1774398646450,-500.0,0.00015999,2]
[408891404,1774398646460,-500.0,0.00015999,2]
[408891406,1774398646474,-500.0,0.00015999,2]
[408891407,1774398646484,-500.0,0.00015999,2]
[408891408,1774398646493,-500.0,0.00015999,2]
[408891409,1774398646503,-500.0,0.00015999,2]
[408891410,1774398646514,-500.0,0.00015999,2]
[408891411,1774398646523,-199.53558888,0.00015999,2]
[408891412,1774398646533,-1007613.88567063,0.00016,2]
[408891413,1774398646570,-50541.13166862,0.00016,2]
[408891414,1774398646618,-521.39397957,0.00013698,2]
[408891415,1774398646627,-233.45592621,0.00016,2]
[408891416,1774398646638,-40868.93105581,0.00016,2]
[408891417,1774398646648,-2943.95635846,0.00016,2]
[408891418,1774398646659,-5239.89376426,0.00016,2]
[408891419,1774398648222,-1187.61162915,0.00014294,2]
[408891420,1774398648236,-362.40423805,0.00014294,2]
[408891421,1774398648246,-1550.0158672,0.00015804,2]
[408891422,1774398648255,-78.4444177,0.000159,2]
[408891423,1774398648291,-7176.853762,0.00015594,7]
[408891424,1774398648302,-437.81310068,0.000159,2]
[408891425,1774398648311,-192.20194932,0.00016,2]
[408891426,1774398648362,-289.53899997,0.00016,2]
[408891427,1774398648515,-98449.15113564,0.00012632,2]
[408891428,1774398648529,-2225.5,0.00012632,2]
[408891429,1774398648540,-343.10411232,0.00012632,2]
[408891430,1774398660776,385.5854082,0.00011966,2]
[408891433,1774398727695,171.0,0.00011966,3]
[408891438,1774398831470,866.2,5.989e-05,2]
[408891439,1774398831691,866.2,6.304e-05,2]
[408891440,1774398832084,866.2,6.619e-05,2]
[408891441,1774398832375,866.2,6.935e-05,2]
[408891442,1774398832790,866.2,7.25e-05,2]
[408891443,1774398833021,866.2,7.565e-05,2]
[408891444,1774398833206,866.2,7.88e-05,2]
[408891445,1774398833444,866.2,8.195e-05,2]
[408891446,1774398833617,866.2,8.511e-05,2]
[408891447,1774398833800,866.2,8.826e-05,2]
[408891448,1774398834224,866.2,9.141e-05,2]
[408891449,1774398834430,866.2,9.456e-05,2]
[408891450,1774398834849,866.2,9.771e-05,2]
[408891451,1774398835052,866.2,0.00010087,2]
[408891452,1774398835259,866.2,0.00010402,2]
[408891453,1774398835455,866.2,0.00010717,2]
[408891454,1774398835665,866.2,0.00011032,2]
[408891455,1774398835869,866.2,0.00011347,2]
[408891456,1774398836071,866.2,0.00011663,2]
[408891457,1774398938840,-722.8955016,0.00011918,2]
[408891458,1774399002886,200.0,9e-05,2]
[408891459,1774399071693,8063.93,0.00011737,2]
[408891460,1774399137769,3477.05854345,0.00011833,2]
[408891461,1774399191298,600.0,0.000156,120]
[408891462,1774399222531,166.66,0.00011134,2]
[408891463,1774399222940,166.66,0.00011368,2]
[408891464,1774399223155,166.66,0.00011602,2]
[408891465,1774399223371,166.66,0.00011837,2]
[408891466,1774399426504,1024.21,0.00011627,2]
[408891467,1774399444297,1500.0,0.00011622,2]
[408891468,1774399493655,2000.0,0.00011622,2]
[408891469,1774399534140,-442.16485857,0.00011902,2]
[408891474,1774399598093,-188.36865426,0.00011902,2]
[408891475,1774399619770,-2280.76075574,0.00011902,2]
[408891476,1774399619800,-138.48848852,0.00011963,2]
[408891477,1774399619847,-161.51151148,0.00011963,2]
[408891478,1774399619930,-866.2,0.00011978,2]
[408891479,1774399619962,-166.66,0.00012071,2]
[408891480,1774399619991,-300.92962121,0.0001212,2]
[408891481,1774399620017,-150.0,0.000123,2]
[408891482,1774399620049,-300.0,0.000123,2]
[408891483,1774399620076,-300.0,0.00012301,2]
[408891484,1774399620250,-832.43075758,0.00012301,2]
[408891485,1774399622673,-367.56924242,0.00012301,2]
[408891486,1774399645439,-196.82349371,0.00012302,2]
[408891487,1774399652075,-474.65313908,0.00012302,2]
[408891488,1774399681483,300.0,0.00012301,2]
[408891489,1774399684830,300.0,0.00012301,2]
[408891490,1774399750121,-4721.86335489,0.00012302,2]
[408891491,1774399752065,-1613.30906099,0.00012302,2]
[408891492,1774399771104,-4501.13888237,0.00012302,2]
[408891493,1774399771131,-166.66,0.00012306,2]
[408891494,1774399771152,-150.0,0.00012372,2]
[408891495,1774399771174,-180.364595,0.00012373,2]
[408891496,1774399771194,-1000.0,0.00012376,2]
[408891497,1774399771214,-150.0,0.00012376,2]
[408891498,1774399771235,-299.99,0.00012377,2]
[408891499,1774399771255,-7362.6,0.00012377,2]
[408891500,1774399771276,-150.99,0.00012377,2]
[408891501,1774399771296,-9999.99,0.00012377,2]
[408891502,1774399771319,-8448.92,0.00012377,2]
[408891503,1774399771340,-192.99553635,0.0001243,2]
[408891504,1774399771359,-2154.61873815,0.00012432,2]
[408891505,1774399795776,4334.647996,0.00011843,2]
[408891506,1774399795800,3664.87151516,0.00011843,2]
[408891507,1774399795820,5000.01,0.00011843,2]
[408891508,1774399795848,216.78048884,0.00011843,2]
[408891517,1774399831687,-541.08692463,0.00012432,2]
[408891519,1774399831696,-168.82643509,0.000125,2]
[408891521,1774399831705,-210.30392274,0.000125,2]
[408891523,1774399831715,-199.74829163,0.000125,2]
[408891525,1774399831724,-206.43340635,0.000125,2]
[408891527,1774399831733,-150.0,0.000125,2]
[408891529,1774399831742,-921.93194025,0.00012508,2]
[408891531,1774399831753,-278.06805975,0.00012508,2]
[408891533,1774399831763,-180.37941354,0.00012508,2]
[408891535,1774399831777,-119.62058646,0.00012508,2]
[408891537,1774399831786,-300.0,0.00012508,2]
[408891539,1774399831796,-3956.23537814,0.00012509,2]
[408891541,1774399831808,-2366.62462186,0.00012509,2]
[408891542,1774399831822,-500.0,0.00012523,2]
[408891543,1774399831831,-500.0,0.00012523,2]
[408891544,1774399831841,-500.0,0.00012523,2]
[408891545,1774399831850,-500.0,0.00012523,2]
[408891546,1774399831861,-200.0,0.00012523,2]
[408891547,1774399831870,-500.0,0.00012523,2]
[408891548,1774399831879,-500.0,0.00012523,2]
[408891549,1774399831890,-500.0,0.00012523,2]
[408891550,1774399831900,-500.0,0.00012523,2]
[408891551,1774399831910,-500.0,0.00012523,2]
[408891552,1774399831919,-500.0,0.00012523,2]
[408891553,1774399831930,-500.0,0.00012523,2]
[408891554,1774399831940,-500.0,0.00012523,2]
[408891555,1774399831949,-151.0,0.00012523,2]
[408891556,1774399831958,-151.0,0.00012523,2]
[408891557,1774399831969,-151.0,0.00012523,2]
[408891558,1774399831978,-151.0,0.00012523,2]
[408891559,1774399831989,-151.0,0.00012523,2]
[408891560,1774399831999,-151.0,0.00012523,2]
[408891561,1774399832009,-285.90697528,0.00012523,2]
[408891562,1774399832020,-151.0,0.00012523,2]
[408891563,1774399832029,-151.0,0.00012523,2]
[408891564,1774399832038,-151.0,0.00012523,2]
[408891565,1774399832048,-151.0,0.00012523,2]
[408891566,1774399832057,-151.0,0.00012523,2]
[408891567,1774399832066,-151.0,0.00012523,2]
[408891568,1774399832075,-151.0,0.00012523,2]
[408891569,1774399832085,-151.0,0.00012523,2]
[408891570,1774399832097,-151.0,0.00012523,2]
[408891571,1774399832364,-151.0,0.00012523,2]
[408891572,1774399832379,-151.0,0.00012523,2]
[408891573,1774399832389,-2394.253,0.0001253,2]
[408891574,1774399832398,-183.242,0.0001253,2]
[408891575,1774399832407,-2500.0,0.00012532,2]
[408891576,1774399832416,-584.14667955,0.00012532,2]
[408891577,1774399832425,-10683.17641921,0.00012532,2]
[408891578,1774399832435,-172.9626,0.00012552,2]
[408891579,1774399832445,-500.0,0.00012573,2]
[408891580,1774399832455,-287.3672538,0.00012573,2]
[408891581,1774399832464,-2153.11426132,0.00012573,2]
[408891582,1774399832474,-732.71,0.00012624,2]
[408891583,1774399832483,-500.0,0.00012631,2]
[408891584,1774399832492,-500.0,0.00012631,2]
[408891585,1774399832501,-500.0,0.00012631,2]
[408891586,1774399832511,-500.0,0.00012631,2]